[Event "*** Titled Tuesday Blitz"]
[Site "Chess.com"]
[Date "2020.12.29"]
[Round "2"]
[White "Beca95"]
[Black "Pelopidass"]
[Result "0-1"]
[WhiteElo "2826"]
[BlackElo "2563"]
[TimeControl "180+1"]
[EndTime "10:18:19 PST"]
[Termination "Pelopidass won on time"]

1. e4 {[%clk 0:03:00.9]} 1... c5 {[%clk 0:02:58]} 2. Nf3 {[%clk 0:03:00.4]} 2...
d6 {[%clk 0:02:58.5]} 3. d4 {[%clk 0:03:00.2]} 3... cxd4 {[%clk 0:02:59.4]} 4.
Nxd4 {[%clk 0:03:00.7]} 4... Nf6 {[%clk 0:02:59.9]} 5. Nc3 {[%clk 0:03:01.4]}
5... a6 {[%clk 0:03:00.3]} 6. Bc4 {[%clk 0:03:01.4]} 6... e6 {[%clk 0:03:00.1]}
7. Be3 {[%clk 0:02:59.2]} 7... b5 {[%clk 0:02:58.9]} 8. Bb3 {[%clk 0:02:58.9]}
8... Be7 {[%clk 0:02:58.1]} 9. Qe2 {[%clk 0:02:54]} 9... Bd7 {[%clk 0:02:56.2]}
10. a3 {[%clk 0:02:52]} 10... Nc6 {[%clk 0:02:54.4]} 11. O-O-O {[%clk 0:02:49]}
11... Nxd4 {[%clk 0:02:52.4]} 12. Rxd4 {[%clk 0:02:48.5]} 12... Qc7 {[%clk
0:02:50.1]} 13. g4 {[%clk 0:02:47.4]} 13... Bc6 {[%clk 0:02:46.8]} 14. g5 {[%clk
0:02:45.9]} 14... Nd7 {[%clk 0:02:47.2]} 15. Kb1 {[%clk 0:02:33.5]} 15... Nc5
{[%clk 0:02:31]} 16. Ba2 {[%clk 0:02:32.7]} 16... Qb7 {[%clk 0:02:24.5]} 17. Qh5
{[%clk 0:01:22.9]} 17... a5 {[%clk 0:01:52.3]} 18. Nd5 {[%clk 0:00:28.6]} 18...
exd5 {[%clk 0:01:46.1]} 19. exd5 {[%clk 0:00:28.6]} 19... Bd7 {[%clk 0:01:44.1]}
20. Rf4 {[%clk 0:00:28.6]} 20... g6 {[%clk 0:01:23.6]} 21. Qf3 {[%clk
0:00:28.2]} 21... Bf5 {[%clk 0:01:20.4]} 22. Re1 {[%clk 0:00:25.9]} 22... O-O-O
{[%clk 0:01:18.6]} 23. Rxf5 {[%clk 0:00:12.4]} 23... gxf5 {[%clk 0:01:17.9]} 24.
Qxf5+ {[%clk 0:00:11.8]} 24... Qd7 {[%clk 0:01:10.7]} 25. Qf3 {[%clk 0:00:12]}
25... Kb8 {[%clk 0:00:47.1]} 26. h4 {[%clk 0:00:11]} 26... Rhe8 {[%clk
0:00:33.2]} 27. Qf4 {[%clk 0:00:09]} 27... Kb7 {[%clk 0:00:31.4]} 28. Rd1 {[%clk
0:00:08.6]} 28... Rc8 {[%clk 0:00:27.1]} 29. Qf3 {[%clk 0:00:08.9]} 29... Bf8
{[%clk 0:00:26.8]} 30. Bd4 {[%clk 0:00:08.2]} 30... Qe7 {[%clk 0:00:25.2]} 31.
Bxc5 {[%clk 0:00:07.9]} 31... Rxc5 {[%clk 0:00:26.1]} 32. Qf5 {[%clk 0:00:06.1]}
32... Rec8 {[%clk 0:00:25.7]} 33. c3 {[%clk 0:00:05.8]} 33... Bg7 {[%clk
0:00:24.8]} 34. Bb3 {[%clk 0:00:05.6]} 34... a4 {[%clk 0:00:24.4]} 35. Bc2
{[%clk 0:00:05.8]} 35... Qe5 {[%clk 0:00:24.5]} 36. Qd3 {[%clk 0:00:04.8]} 36...
Rc4 {[%clk 0:00:23.3]} 37. Rh1 {[%clk 0:00:03.3]} 37... Re8 {[%clk 0:00:23.2]}
38. Qxh7 {[%clk 0:00:01.4]} 38... Rxc3 {[%clk 0:00:20.6]} 39. f4 {[%clk
0:00:01.9]} 39... Qd4 {[%clk 0:00:20.3]} 40. Rd1 {[%clk 0:00:02.1]} 40... Rd3
{[%clk 0:00:19.4]} 0-1

[Event "*** Titled Tuesday Blitz"]
[Site "Chess.com"]
[Date "2020.12.29"]
[Round "2"]
[White "RobertoJBM"]
[Black "Agent-JL"]
[Result "0-1"]
[WhiteElo "2702"]
[BlackElo "2397"]
[TimeControl "180+1"]
[EndTime "10:18:19 PST"]
[Termination "Agent-JL won on time"]

1. d4 {[%clk 0:03:00.9]} 1... Nf6 {[%clk 0:03:00.1]} 2. c4 {[%clk 0:02:59.3]}
2... e6 {[%clk 0:02:57.7]} 3. Nc3 {[%clk 0:02:57.1]} 3... Bb4 {[%clk 0:02:57]}
4. Qc2 {[%clk 0:02:56.4]} 4... c5 {[%clk 0:02:56.9]} 5. dxc5 {[%clk 0:02:54.2]}
5... Na6 {[%clk 0:02:42.5]} 6. a3 {[%clk 0:02:47.1]} 6... Bxc3+ {[%clk
0:02:38.5]} 7. Qxc3 {[%clk 0:02:48]} 7... Nxc5 {[%clk 0:02:38.9]} 8. b4 {[%clk
0:02:47.6]} 8... Nce4 {[%clk 0:02:38.1]} 9. Qd4 {[%clk 0:02:44.7]} 9... d5
{[%clk 0:02:36.2]} 10. Bb2 {[%clk 0:02:20.5]} 10... dxc4 {[%clk 0:02:30.6]} 11.
Qxd8+ {[%clk 0:02:13.1]} 11... Kxd8 {[%clk 0:02:30.8]} 12. f3 {[%clk 0:02:13.8]}
12... c3 {[%clk 0:02:23.1]} 13. Bc1 {[%clk 0:01:58.3]} 13... Nd6 {[%clk
0:02:00.6]} 14. e4 {[%clk 0:01:56.9]} 14... e5 {[%clk 0:01:51.7]} 15. Be3 {[%clk
0:01:54.9]} 15... Be6 {[%clk 0:01:45.9]} 16. Rc1 {[%clk 0:01:52]} 16... b6
{[%clk 0:01:43.4]} 17. Rxc3 {[%clk 0:01:49.6]} 17... Rc8 {[%clk 0:01:39.8]} 18.
Rxc8+ {[%clk 0:01:47.5]} 18... Kxc8 {[%clk 0:01:40.7]} 19. Ba6+ {[%clk
0:01:42.5]} 19... Kb8 {[%clk 0:01:40.7]} 20. Ne2 {[%clk 0:01:37.1]} 20... Bc4
{[%clk 0:01:29]} 21. Bxc4 {[%clk 0:01:34.2]} 21... Nxc4 {[%clk 0:01:29.9]} 22.
Bc1 {[%clk 0:01:18.2]} 22... Rd8 {[%clk 0:01:20.9]} 23. Ng3 {[%clk 0:01:17.9]}
23... Rd3 {[%clk 0:01:17]} 24. Ke2 {[%clk 0:01:17.2]} 24... Rc3 {[%clk
0:01:13.3]} 25. Nf5 {[%clk 0:01:13.8]} 25... g6 {[%clk 0:01:11]} 26. Nh6 {[%clk
0:01:13]} 26... b5 {[%clk 0:01:01.6]} 27. Nxf7 {[%clk 0:01:05.7]} 27... Rc2+
{[%clk 0:01:01.7]} 28. Kd3 {[%clk 0:01:05.8]} 28... Rxg2 {[%clk 0:00:59.1]} 29.
Rf1 {[%clk 0:00:18]} 29... Rxh2 {[%clk 0:00:53.2]} 30. f4 {[%clk 0:00:12.2]}
30... Rh3+ {[%clk 0:00:52.3]} 31. Ke2 {[%clk 0:00:11.6]} 31... Nxe4 {[%clk
0:00:52.1]} 32. Rf3 {[%clk 0:00:09.4]} 32... Rh2+ {[%clk 0:00:40.9]} 33. Kd3
{[%clk 0:00:07.1]} 33... Nf2+ {[%clk 0:00:38.8]} 34. Kc3 {[%clk 0:00:05.2]}
34... e4 {[%clk 0:00:27]} 35. Rg3 {[%clk 0:00:05.2]} 35... Nd1+ {[%clk
0:00:17.1]} 36. Kd4 {[%clk 0:00:05.1]} 36... e3 {[%clk 0:00:17.5]} 37. Ne5
{[%clk 0:00:03.3]} 37... e2 {[%clk 0:00:15]} 38. Nd3 {[%clk 0:00:02.8]} 38...
Nf2 {[%clk 0:00:09.9]} 39. Ne1 {[%clk 0:00:02.1]} 39... Rh1 {[%clk 0:00:10.3]}
0-1

[Event "*** Titled Tuesday Blitz"]
[Site "Chess.com"]
[Date "2020.12.29"]
[Round "2"]
[White "azikom"]
[Black "Leo_C"]
[Result "1-0"]
[WhiteElo "2632"]
[BlackElo "2340"]
[TimeControl "180+1"]
[EndTime "10:18:19 PST"]
[Termination "azikom won by resignation"]

1. c4 {[%clk 0:02:58.8]} 1... e6 {[%clk 0:02:58.8]} 2. Nc3 {[%clk 0:02:58.7]}
2... d5 {[%clk 0:02:58.5]} 3. e3 {[%clk 0:02:59.1]} 3... Nf6 {[%clk 0:02:57.9]}
4. Nf3 {[%clk 0:02:59.6]} 4... c6 {[%clk 0:02:58]} 5. b3 {[%clk 0:02:57.5]} 5...
Bd6 {[%clk 0:02:57.9]} 6. Bb2 {[%clk 0:02:57.8]} 6... O-O {[%clk 0:02:58.1]} 7.
Be2 {[%clk 0:02:57.3]} 7... e5 {[%clk 0:02:58.1]} 8. cxd5 {[%clk 0:02:57.3]}
8... cxd5 {[%clk 0:02:59]} 9. Nb5 {[%clk 0:02:57.3]} 9... Nc6 {[%clk 0:02:57.3]}
10. Nxd6 {[%clk 0:02:56.1]} 10... Qxd6 {[%clk 0:02:56.9]} 11. O-O {[%clk
0:02:56.5]} 11... d4 {[%clk 0:02:52.2]} 12. Bb5 {[%clk 0:02:54]} 12... Bg4
{[%clk 0:02:47.7]} 13. Bxc6 {[%clk 0:02:34.2]} 13... bxc6 {[%clk 0:02:43.4]} 14.
d3 {[%clk 0:02:29.9]} 14... Rfe8 {[%clk 0:02:08.1]} 15. exd4 {[%clk 0:02:28.2]}
15... exd4 {[%clk 0:02:05.5]} 16. h3 {[%clk 0:02:22.5]} 16... Bxf3 {[%clk
0:02:02.4]} 17. Qxf3 {[%clk 0:02:22.1]} 17... c5 {[%clk 0:02:01.6]} 18. Rfe1
{[%clk 0:02:11.5]} 18... Nd5 {[%clk 0:01:58.8]} 19. Re4 {[%clk 0:02:04.4]} 19...
Re6 {[%clk 0:01:31.2]} 20. Rxe6 {[%clk 0:01:55.2]} 20... Qxe6 {[%clk 0:01:26.6]}
21. Rc1 {[%clk 0:01:55.6]} 21... Rc8 {[%clk 0:01:26]} 22. Qe4 {[%clk 0:01:41.1]}
22... Qxe4 {[%clk 0:00:58]} 23. dxe4 {[%clk 0:01:40.4]} 23... Nb6 {[%clk
0:00:58.1]} 24. Kf1 {[%clk 0:01:29.7]} 24... f6 {[%clk 0:00:57.8]} 25. Ke2
{[%clk 0:01:26.4]} 25... Kf7 {[%clk 0:00:53.3]} 26. Ba3 {[%clk 0:01:24.9]} 26...
c4 {[%clk 0:00:33.4]} 27. bxc4 {[%clk 0:01:24]} 27... Nxc4 {[%clk 0:00:33.5]}
28. f4 {[%clk 0:00:29.6]} 28... a6 {[%clk 0:00:18.9]} 29. Kd3 {[%clk 0:00:22.3]}
29... Nd6 {[%clk 0:00:19]} 30. Rxc8 {[%clk 0:00:21.6]} 30... Nxc8 {[%clk
0:00:19.9]} 31. Kxd4 {[%clk 0:00:22.2]} 31... Ke6 {[%clk 0:00:20.3]} 32. Bc5
{[%clk 0:00:21.9]} 32... a5 {[%clk 0:00:18.8]} 33. f5+ {[%clk 0:00:21.8]} 33...
Kd7 {[%clk 0:00:18.5]} 34. Kd5 {[%clk 0:00:21]} 34... g6 {[%clk 0:00:19]} 35. g4
{[%clk 0:00:20.7]} 35... g5 {[%clk 0:00:18.5]} 36. a4 {[%clk 0:00:20.3]} 36...
h6 {[%clk 0:00:18.3]} 37. e5 {[%clk 0:00:20.2]} 37... fxe5 {[%clk 0:00:18.2]}
38. Kxe5 {[%clk 0:00:20.6]} 38... Kc6 {[%clk 0:00:18.7]} 39. Kd4 {[%clk
0:00:20.7]} 39... Kd7 {[%clk 0:00:18]} 40. Kd5 {[%clk 0:00:20.8]} 40... Kc7
{[%clk 0:00:17.9]} 41. f6 {[%clk 0:00:20.8]} 41... Kd7 {[%clk 0:00:18]} 42. Ke5
{[%clk 0:00:18.1]} 42... Ke8 {[%clk 0:00:16.8]} 43. Ke6 {[%clk 0:00:18.1]} 43...
Kd8 {[%clk 0:00:16.5]} 44. f7 {[%clk 0:00:17.9]} 1-0

[Event "*** Titled Tuesday Blitz"]
[Site "Chess.com"]
[Date "2020.12.29"]
[Round "2"]
[White "kuban1991"]
[Black "goldenpuppy"]
[Result "1-0"]
[WhiteElo "2766"]
[BlackElo "2349"]
[TimeControl "180+1"]
[EndTime "10:18:19 PST"]
[Termination "kuban1991 won by resignation"]

1. Nf3 {[%clk 0:03:00.9]} 1... c5 {[%clk 0:02:59.3]} 2. g3 {[%clk 0:02:59.2]}
2... Nc6 {[%clk 0:02:58.9]} 3. Bg2 {[%clk 0:02:59.8]} 3... e5 {[%clk 0:02:59.2]}
4. O-O {[%clk 0:02:59.4]} 4... d6 {[%clk 0:02:59.3]} 5. c4 {[%clk 0:02:59.4]}
5... g6 {[%clk 0:02:59.7]} 6. Nc3 {[%clk 0:02:59.6]} 6... Bg7 {[%clk 0:03:00.1]}
7. Ne1 {[%clk 0:03:00.5]} 7... Nge7 {[%clk 0:03:00.3]} 8. Nc2 {[%clk 0:03:01.1]}
8... O-O {[%clk 0:03:00.9]} 9. Ne3 {[%clk 0:03:01.7]} 9... f5 {[%clk 0:03:01.6]}
10. d3 {[%clk 0:03:01.9]} 10... Be6 {[%clk 0:03:01.7]} 11. Ned5 {[%clk
0:03:02.1]} 11... Qd7 {[%clk 0:03:01.6]} 12. Bd2 {[%clk 0:03:00.1]} 12... Rae8
{[%clk 0:03:00.8]} 13. a3 {[%clk 0:02:55.7]} 13... b6 {[%clk 0:02:58.8]} 14. Qa4
{[%clk 0:02:54.9]} 14... Nd4 {[%clk 0:02:56]} 15. Qxd7 {[%clk 0:02:53.4]} 15...
Bxd7 {[%clk 0:02:56.9]} 16. e3 {[%clk 0:02:53.5]} 16... Nb3 {[%clk 0:02:55.9]}
17. Rad1 {[%clk 0:02:50.5]} 17... Nxd2 {[%clk 0:02:55.8]} 18. Rxd2 {[%clk
0:02:51.4]} 18... Nxd5 {[%clk 0:02:55.6]} 19. Bxd5+ {[%clk 0:02:48.7]} 19... Kh8
{[%clk 0:02:55.9]} 20. b4 {[%clk 0:02:46.2]} 20... e4 {[%clk 0:02:55.1]} 21. Ne2
{[%clk 0:02:38.9]} 21... exd3 {[%clk 0:02:50]} 22. Rxd3 {[%clk 0:02:39.8]} 22...
b5 {[%clk 0:02:37.3]} 23. Rfd1 {[%clk 0:02:30.2]} 23... Be5 {[%clk 0:02:31.4]}
24. h4 {[%clk 0:02:24.5]} 24... Kg7 {[%clk 0:02:30.2]} 25. bxc5 {[%clk
0:02:14.2]} 25... dxc5 {[%clk 0:02:29.5]} 26. Bf3 {[%clk 0:02:05.4]} 26... Be6
{[%clk 0:02:28.5]} 27. cxb5 {[%clk 0:02:05.4]} 27... c4 {[%clk 0:02:27]} 28. Rd4
{[%clk 0:01:51.8]} 28... Bxd4 {[%clk 0:02:22.6]} 29. Nxd4 {[%clk 0:01:52.7]}
29... Bf7 {[%clk 0:02:22.4]} 30. a4 {[%clk 0:01:51.4]} 30... Rc8 {[%clk
0:02:21.2]} 31. Rc1 {[%clk 0:01:49.8]} 31... Rc5 {[%clk 0:02:18.7]} 32. Nc6
{[%clk 0:01:39.3]} 32... c3 {[%clk 0:02:16.2]} 33. Nxa7 {[%clk 0:01:34]} 33...
c2 {[%clk 0:02:09.4]} 34. b6 {[%clk 0:01:18.9]} 34... Rb8 {[%clk 0:02:08.3]} 35.
a5 {[%clk 0:01:17]} 35... Rxa5 {[%clk 0:02:01.4]} 36. Rxc2 {[%clk 0:01:04.7]}
36... Rxb6 {[%clk 0:02:00.3]} 37. Rc7 {[%clk 0:01:04.7]} 37... Ra1+ {[%clk
0:01:55.3]} 38. Kg2 {[%clk 0:01:04.3]} 38... Kf6 {[%clk 0:01:54.5]} 39. Rc6+
{[%clk 0:00:13.5]} 39... Rxc6 {[%clk 0:01:53.1]} 40. Nxc6 {[%clk 0:00:14.4]}
40... Rc1 {[%clk 0:01:51.6]} 41. Nd4 {[%clk 0:00:14.3]} 41... Ke5 {[%clk
0:01:51.2]} 42. Be2 {[%clk 0:00:11.2]} 42... Bd5+ {[%clk 0:01:50.2]} 43. Bf3
{[%clk 0:00:11.8]} 43... Be4 {[%clk 0:01:49.9]} 44. Bxe4 {[%clk 0:00:10.8]}
44... fxe4 {[%clk 0:01:50.8]} 45. Ne2 {[%clk 0:00:10.8]} 45... Rc2 {[%clk
0:01:50.4]} 46. Nf4 {[%clk 0:00:11.3]} 46... Kf5 {[%clk 0:01:49.6]} 47. Nh3
{[%clk 0:00:10.4]} 47... h6 {[%clk 0:01:49.5]} 48. Nf4 {[%clk 0:00:10.2]} 48...
g5 {[%clk 0:01:49.7]} 49. hxg5 {[%clk 0:00:11]} 49... hxg5 {[%clk 0:01:50.3]}
50. Nd5 {[%clk 0:00:09.6]} 50... Rd2 {[%clk 0:01:49]} 51. Nc3 {[%clk 0:00:08.8]}
51... Rd3 {[%clk 0:01:48.4]} 52. Nb5 {[%clk 0:00:08.7]} 52... Ke5 {[%clk
0:01:47.6]} 53. Nd4 {[%clk 0:00:06.9]} 53... Kd5 {[%clk 0:01:47.1]} 54. Nf5
{[%clk 0:00:06.7]} 54... Kc4 {[%clk 0:01:45.1]} 55. g4 {[%clk 0:00:06.7]} 55...
Kc3 {[%clk 0:01:43.3]} 56. Ng3 {[%clk 0:00:07.2]} 56... Kd2 {[%clk 0:01:39.7]}
57. Nxe4+ {[%clk 0:00:07.2]} 57... Ke1 {[%clk 0:01:40.1]} 58. Nxg5 {[%clk
0:00:07.9]} 58... Rd2 {[%clk 0:01:40.4]} 59. Nh3 {[%clk 0:00:08.6]} 59... Ke2
{[%clk 0:01:38.4]} 60. g5 {[%clk 0:00:06.9]} 60... Rd6 {[%clk 0:01:33.8]} 61.
Kg3 {[%clk 0:00:07.1]} 61... Kd3 {[%clk 0:01:31.7]} 62. Kf4 {[%clk 0:00:07.2]}
62... Rd8 {[%clk 0:01:28]} 63. g6 {[%clk 0:00:04.8]} 63... Rf8+ {[%clk
0:01:28.4]} 64. Kg5 {[%clk 0:00:04.9]} 64... Ke4 {[%clk 0:01:29]} 65. g7 {[%clk
0:00:05]} 65... Ra8 {[%clk 0:01:25.9]} 66. Kg6 {[%clk 0:00:05.2]} 66... Ke5
{[%clk 0:01:23.2]} 67. Kh7 {[%clk 0:00:05.7]} 67... Ra7 {[%clk 0:01:22.1]} 68.
Kh8 {[%clk 0:00:06.1]} 68... Ra4 {[%clk 0:01:21.1]} 69. g8=Q {[%clk 0:00:07]}
69... Rh4+ {[%clk 0:01:21.3]} 70. Qh7 {[%clk 0:00:07.4]} 70... Rxh7+ {[%clk
0:01:21]} 71. Kxh7 {[%clk 0:00:08.3]} 1-0

[Event "*** Titled Tuesday Blitz"]
[Site "Chess.com"]
[Date "2020.12.29"]
[Round "2"]
[White "QuintilianoR"]
[Black "javirec"]
[Result "1-0"]
[WhiteElo "2663"]
[BlackElo "2377"]
[TimeControl "180+1"]
[EndTime "10:18:20 PST"]
[Termination "QuintilianoR won on time"]

1. d4 {[%clk 0:03:00.9]} 1... Nf6 {[%clk 0:02:59.1]} 2. c4 {[%clk 0:03:01.4]}
2... g6 {[%clk 0:02:59.2]} 3. Nc3 {[%clk 0:03:01]} 3... Bg7 {[%clk 0:02:59.2]}
4. Nf3 {[%clk 0:03:01.4]} 4... d6 {[%clk 0:02:58.7]} 5. e4 {[%clk 0:03:01.9]}
5... O-O {[%clk 0:02:58.7]} 6. Be2 {[%clk 0:03:02.5]} 6... c6 {[%clk 0:02:58.7]}
7. O-O {[%clk 0:03:02.7]} 7... a6 {[%clk 0:02:58.7]} 8. h3 {[%clk 0:02:58.3]}
8... b5 {[%clk 0:02:58]} 9. a3 {[%clk 0:02:54.7]} 9... Bb7 {[%clk 0:02:57.8]}
10. Qc2 {[%clk 0:02:52.9]} 10... Nbd7 {[%clk 0:02:57.6]} 11. Rd1 {[%clk
0:02:52.7]} 11... Qb8 {[%clk 0:02:54]} 12. Bg5 {[%clk 0:02:40.3]} 12... e5
{[%clk 0:02:45.2]} 13. dxe5 {[%clk 0:02:16.1]} 13... dxe5 {[%clk 0:02:43.3]} 14.
b4 {[%clk 0:02:11]} 14... Re8 {[%clk 0:02:22.7]} 15. c5 {[%clk 0:02:03.9]} 15...
h6 {[%clk 0:02:16.3]} 16. Be3 {[%clk 0:01:53.5]} 16... Nf8 {[%clk 0:02:11.8]}
17. Rd6 {[%clk 0:01:49.7]} 17... Nh5 {[%clk 0:02:03.2]} 18. g3 {[%clk
0:01:39.2]} 18... Ne6 {[%clk 0:01:50.1]} 19. Qd2 {[%clk 0:01:29.4]} 19... Kh7
{[%clk 0:01:49.1]} 20. Rd1 {[%clk 0:01:29]} 20... Rf8 {[%clk 0:01:27.9]} 21. Nh4
{[%clk 0:00:51.3]} 21... Nhf4 {[%clk 0:00:56.6]} 22. Bf1 {[%clk 0:00:46.6]}
22... Qe8 {[%clk 0:00:43.6]} 23. Qc2 {[%clk 0:00:43.2]} 23... Nh5 {[%clk
0:00:37.2]} 24. Nf3 {[%clk 0:00:37.6]} 24... Bf6 {[%clk 0:00:27.6]} 25. Qb3
{[%clk 0:00:29.9]} 25... Rd8 {[%clk 0:00:23.4]} 26. Rxd8 {[%clk 0:00:27.1]}
26... Nxd8 {[%clk 0:00:22.4]} 27. a4 {[%clk 0:00:28]} 27... Qe6 {[%clk
0:00:20.3]} 28. Qxe6 {[%clk 0:00:27]} 28... Nxe6 {[%clk 0:00:21.2]} 29. axb5
{[%clk 0:00:25.3]} 29... axb5 {[%clk 0:00:19.1]} 30. Rd7 {[%clk 0:00:25.6]}
30... Bc8 {[%clk 0:00:15]} 31. Ra7 {[%clk 0:00:25.9]} 31... Nd4 {[%clk
0:00:11.8]} 32. Bxd4 {[%clk 0:00:21.8]} 32... exd4 {[%clk 0:00:12.7]} 33. Ne2
{[%clk 0:00:21.9]} 33... d3 {[%clk 0:00:10.1]} 34. Nc1 {[%clk 0:00:21.8]} 34...
d2 {[%clk 0:00:05.5]} 35. Nxd2 {[%clk 0:00:21.8]} 35... Bc3 {[%clk 0:00:06.2]}
36. Nb1 {[%clk 0:00:22.1]} 36... Bxb4 {[%clk 0:00:05.9]} 37. Nd3 {[%clk
0:00:22.6]} 37... Be6 {[%clk 0:00:02.6]} 38. Nxb4 {[%clk 0:00:22]} 38... Rd8
{[%clk 0:00:03.5]} 39. Be2 {[%clk 0:00:20.9]} 39... Nf6 {[%clk 0:00:02.3]} 40.
Nxc6 {[%clk 0:00:21.4]} 40... Rc8 {[%clk 0:00:02.7]} 41. Nd4 {[%clk 0:00:21.3]}
41... Bc4 {[%clk 0:00:01.1]} 42. e5 {[%clk 0:00:20.6]} 1-0

[Event "*** Titled Tuesday Blitz"]
[Site "Chess.com"]
[Date "2020.12.29"]
[Round "2"]
[White "dretch"]
[Black "Agibileg"]
[Result "1-0"]
[WhiteElo "2838"]
[BlackElo "2541"]
[TimeControl "180+1"]
[EndTime "10:18:22 PST"]
[Termination "dretch won on time"]

1. d4 {[%clk 0:03:00.9]} 1... Nf6 {[%clk 0:02:59.3]} 2. c4 {[%clk 0:03:01.3]}
2... g6 {[%clk 0:02:59.7]} 3. Nc3 {[%clk 0:03:01.8]} 3... Bg7 {[%clk 0:03:00.2]}
4. e4 {[%clk 0:03:02.3]} 4... d6 {[%clk 0:03:00.6]} 5. Nf3 {[%clk 0:03:02.8]}
5... O-O {[%clk 0:03:01]} 6. h3 {[%clk 0:03:03.2]} 6... e5 {[%clk 0:02:56.4]} 7.
dxe5 {[%clk 0:03:04.1]} 7... dxe5 {[%clk 0:02:56.2]} 8. Qxd8 {[%clk 0:03:05]}
8... Rxd8 {[%clk 0:02:56.2]} 9. Bg5 {[%clk 0:03:05.9]} 9... c6 {[%clk
0:02:52.3]} 10. Nxe5 {[%clk 0:03:05.8]} 10... Re8 {[%clk 0:02:49]} 11. O-O-O
{[%clk 0:03:03.5]} 11... Na6 {[%clk 0:02:04]} 12. Nf3 {[%clk 0:02:48.4]} 12...
Nc5 {[%clk 0:01:55.2]} 13. e5 {[%clk 0:02:47.5]} 13... Nfd7 {[%clk 0:01:48.2]}
14. Be3 {[%clk 0:02:46.8]} 14... Ne6 {[%clk 0:01:39.1]} 15. Ne4 {[%clk
0:02:44.5]} 15... Nxe5 {[%clk 0:01:37.9]} 16. Nd6 {[%clk 0:02:43.2]} 16... Rd8
{[%clk 0:01:27.6]} 17. Be2 {[%clk 0:02:38.9]} 17... b5 {[%clk 0:01:06.5]} 18.
cxb5 {[%clk 0:01:51.9]} 18... cxb5 {[%clk 0:01:06.5]} 19. Nxb5 {[%clk
0:01:51.2]} 19... Ba6 {[%clk 0:01:02.7]} 20. Nxe5 {[%clk 0:01:29.4]} 20... Bxe5
{[%clk 0:01:01.7]} 21. Rxd8+ {[%clk 0:01:29.3]} 21... Rxd8 {[%clk 0:01:01.2]}
22. Nc3 {[%clk 0:01:24.1]} 22... Bb7 {[%clk 0:00:52.1]} 23. Bf3 {[%clk
0:01:09.5]} 23... Bxf3 {[%clk 0:00:50.7]} 24. gxf3 {[%clk 0:01:10.4]} 24... a6
{[%clk 0:00:48.5]} 25. Rd1 {[%clk 0:01:05.2]} 25... Rc8 {[%clk 0:00:48.5]} 26.
Kc2 {[%clk 0:01:03.4]} 26... Kg7 {[%clk 0:00:39.9]} 27. Rd5 {[%clk 0:01:02.4]}
27... Kf6 {[%clk 0:00:36.6]} 28. Kd3 {[%clk 0:01:01.8]} 28... Bxc3 {[%clk
0:00:22.8]} 29. bxc3 {[%clk 0:01:01.1]} 29... Rb8 {[%clk 0:00:22.3]} 30. Kc2
{[%clk 0:00:55.6]} 30... Ke7 {[%clk 0:00:19.3]} 31. Ra5 {[%clk 0:00:52.5]} 31...
Ra8 {[%clk 0:00:17.1]} 32. Rd5 {[%clk 0:00:48.1]} 32... Rc8 {[%clk 0:00:15.9]}
33. a4 {[%clk 0:00:44.8]} 33... Rc6 {[%clk 0:00:15.5]} 34. Kb3 {[%clk 0:00:44]}
34... f5 {[%clk 0:00:14.8]} 35. Kb4 {[%clk 0:00:38.9]} 35... Nc7 {[%clk
0:00:12.8]} 36. Rc5 {[%clk 0:00:34.7]} 36... Kd7 {[%clk 0:00:12.5]} 37. h4
{[%clk 0:00:20.6]} 37... Rxc5 {[%clk 0:00:11.4]} 38. Kxc5 {[%clk 0:00:20.7]}
38... f4 {[%clk 0:00:10.1]} 39. Bd2 {[%clk 0:00:18.3]} 39... h6 {[%clk
0:00:06.4]} 40. c4 {[%clk 0:00:16.9]} 40... g5 {[%clk 0:00:06.5]} 41. hxg5
{[%clk 0:00:16.5]} 41... hxg5 {[%clk 0:00:07.4]} 42. Kb6 {[%clk 0:00:16.8]}
42... Ne6 {[%clk 0:00:03.4]} 43. Bc3 {[%clk 0:00:17]} 1-0

[Event "*** Titled Tuesday Blitz"]
[Site "Chess.com"]
[Date "2020.12.29"]
[Round "2"]
[White "1random"]
[Black "GregShahade"]
[Result "1-0"]
[WhiteElo "2433"]
[BlackElo "2669"]
[TimeControl "180+1"]
[EndTime "10:18:22 PST"]
[Termination "1random won by checkmate"]

1. e4 {[%clk 0:03:00.3]} 1... e5 {[%clk 0:03:00.2]} 2. Nf3 {[%clk 0:03:01.1]}
2... Nc6 {[%clk 0:03:00.6]} 3. Nc3 {[%clk 0:03:01.9]} 3... Nf6 {[%clk
0:03:00.2]} 4. d4 {[%clk 0:03:02.7]} 4... exd4 {[%clk 0:03:01.1]} 5. Nxd4 {[%clk
0:03:03.6]} 5... Bb4 {[%clk 0:03:00.5]} 6. Nxc6 {[%clk 0:03:04.4]} 6... bxc6
{[%clk 0:03:01.2]} 7. Bd3 {[%clk 0:03:05.3]} 7... d5 {[%clk 0:02:57.2]} 8. exd5
{[%clk 0:03:06.2]} 8... O-O {[%clk 0:02:57.1]} 9. O-O {[%clk 0:03:06.9]} 9...
Bg4 {[%clk 0:02:56.2]} 10. f3 {[%clk 0:03:07.5]} 10... Bh5 {[%clk 0:02:56.6]}
11. Bg5 {[%clk 0:03:08]} 11... Qd6 {[%clk 0:02:56.9]} 12. a3 {[%clk 0:02:33.5]}
12... Bxc3 {[%clk 0:02:41.2]} 13. bxc3 {[%clk 0:02:34.4]} 13... Nxd5 {[%clk
0:02:41.5]} 14. c4 {[%clk 0:02:13.2]} 14... Qc5+ {[%clk 0:02:19.3]} 15. Kh1
{[%clk 0:02:13.6]} 15... Nb6 {[%clk 0:02:18.5]} 16. Bd2 {[%clk 0:01:41.1]} 16...
Rfe8 {[%clk 0:02:02]} 17. Bb4 {[%clk 0:01:24.6]} 17... Qg5 {[%clk 0:02:02.1]}
18. f4 {[%clk 0:00:37.6]} 18... Qh6 {[%clk 0:01:46.2]} 19. Qd2 {[%clk
0:00:23.7]} 19... Rad8 {[%clk 0:01:45.7]} 20. Qf2 {[%clk 0:00:20.7]} 20... Bg4
{[%clk 0:01:38.3]} 21. f5 {[%clk 0:00:18.5]} 21... f6 {[%clk 0:01:20.2]} 22. Qg3
{[%clk 0:00:16.3]} 22... Be2 {[%clk 0:00:57.3]} 23. Rfe1 {[%clk 0:00:08.8]}
23... Bxd3 {[%clk 0:00:53.2]} 24. cxd3 {[%clk 0:00:09.3]} 24... Rxe1+ {[%clk
0:00:41.1]} 25. Rxe1 {[%clk 0:00:10.2]} 25... Na8 {[%clk 0:00:35]} 26. Qf3
{[%clk 0:00:07.6]} 26... Qg5 {[%clk 0:00:28.1]} 27. Qxc6 {[%clk 0:00:07.9]}
27... Qxf5 {[%clk 0:00:26.8]} 28. Re8+ {[%clk 0:00:07.1]} 28... Kf7 {[%clk
0:00:25.2]} 29. Re7+ {[%clk 0:00:06.9]} 29... Kg6 {[%clk 0:00:23.7]} 30. h3
{[%clk 0:00:05.4]} 30... Qf1+ {[%clk 0:00:13.9]} 31. Kh2 {[%clk 0:00:06.1]}
31... Qf4+ {[%clk 0:00:14.4]} 32. Kg1 {[%clk 0:00:06.9]} 32... Rxd3 {[%clk
0:00:09.6]} 33. Qe8+ {[%clk 0:00:07]} 33... Kh6 {[%clk 0:00:08.5]} 34. Re1
{[%clk 0:00:05.2]} 34... Qd4+ {[%clk 0:00:07.9]} 35. Kh1 {[%clk 0:00:05.2]}
35... Nb6 {[%clk 0:00:06]} 36. g4 {[%clk 0:00:02.8]} 36... Rd1 {[%clk
0:00:05.4]} 37. Qh5# {[%clk 0:00:02]} 1-0